fUSD/lending_fUSD_20250608
["ID","MTS","AMOUNT","RATE_DAILY","PERIOD"]
[365046277,1749425452623,-480.0,0.00019189,2]
[365046278,1749425452634,-480.0,0.00019189,2]
[365046279,1749425452644,-480.0,0.00019189,2]
[365046280,1749425452654,-480.0,0.00019189,2]
[365046281,1749425452664,-480.0,0.00019189,2]
[365046282,1749425452674,-480.0,0.00019189,2]
[365046283,1749425452683,-428.19532098,0.00019189,2]
[365046284,1749425452694,-647.27,0.00019189,2]
[365046285,1749425452704,-480.0,0.00019189,2]
[365046286,1749425452714,-225.11794371,0.00019189,2]
[365046287,1749425452723,-480.0,0.00019189,2]
[365046288,1749425452732,-480.0,0.00019189,2]
[365046289,1749425452743,-480.0,0.00019189,2]
[365046290,1749425452752,-999.15,0.00019189,2]
[365046291,1749425452762,-480.0,0.00019189,2]
[365046292,1749425452773,-480.0,0.00019189,2]
[365046293,1749425452782,-480.0,0.00019189,2]
[365046294,1749425452792,-480.0,0.00019189,2]
[365046295,1749425452802,-480.0,0.00019189,2]
[365046296,1749425452813,-480.0,0.00019189,2]
[365046297,1749425452823,-480.0,0.00019189,2]
[365046298,1749425452833,-480.0,0.00019189,2]
[365046299,1749425452844,-480.0,0.00019189,2]
[365046300,1749425452855,-480.0,0.00019189,2]
[365046301,1749425452865,-480.0,0.00019189,2]
[365046302,1749425452876,-480.0,0.00019189,2]
[365046303,1749425452886,-480.0,0.00019189,2]
[365046304,1749425452896,-480.0,0.00019189,2]
[365046305,1749425452905,-480.0,0.00019189,2]
[365046306,1749425452917,-2000.0,0.00019189,2]
[365046307,1749425452928,-542.42,0.00019189,2]
[365046308,1749425452938,-480.0,0.00019189,2]
[365046309,1749425452948,-480.0,0.00019189,2]
[365046310,1749425452959,-480.0,0.00019189,2]
[365046311,1749425452970,-480.0,0.00019189,2]
[365046312,1749425452981,-480.0,0.00019189,2]
[365046313,1749425452991,-480.0,0.00019189,2]
[365046314,1749425453001,-480.0,0.00019189,2]
[365046315,1749425453011,-480.0,0.00019189,2]
[365046316,1749425453025,-480.0,0.00019189,2]
[365046317,1749425453035,-480.0,0.00019189,2]
[365046318,1749425453045,-496.61,0.00019189,2]
[365046319,1749425453055,-480.0,0.00019189,2]
[365046320,1749425453065,-480.0,0.00019189,2]
[365046321,1749425453076,-480.0,0.00019189,2]
[365046322,1749425453086,-480.0,0.00019189,2]
[365046323,1749425453096,-480.0,0.00019189,2]
[365046324,1749425453106,-492.06,0.00019189,2]
[365046325,1749425453116,-480.0,0.00019189,2]
[365046326,1749425453126,-480.0,0.00019189,2]
[365046327,1749425453136,-480.0,0.00019189,2]
[365046328,1749425453145,-480.0,0.00019189,2]
[365046329,1749425453155,-480.0,0.00019189,2]
[365046330,1749425453164,-480.0,0.00019189,2]
[365046331,1749425453174,-480.0,0.00019189,2]
[365046332,1749425453183,-1680.0,0.00019189,2]
[365046333,1749425453194,-480.0,0.00019189,2]
[365046334,1749425453204,-480.0,0.00019189,2]
[365046335,1749425453214,-480.0,0.00019189,2]
[365046336,1749425453224,-480.0,0.00019189,2]
[365046337,1749425453389,-480.0,0.00019189,2]
[365046338,1749425453400,-480.0,0.00019189,2]
[365046339,1749425453410,-878.95,0.00019189,2]
[365046340,1749425453420,-1299.39,0.00019189,2]
[365046341,1749425453429,-180.0,0.0001919,2]
[365046342,1749425453439,-1194.38,0.0001919,2]
[365046343,1749425453449,-604.14,0.0001919,2]
[365046344,1749425453458,-693.04,0.0001919,2]
[365046345,1749425453468,-808.23,0.0001919,2]
[365046346,1749425453477,-322.8,0.0001919,2]
[365046347,1749425453488,-480.0,0.0001919,2]
[365046348,1749425453497,-480.0,0.0001919,2]
[365046349,1749425453507,-480.0,0.0001919,2]
[365046350,1749425453518,-480.0,0.0001919,2]
[365046351,1749425453529,-480.0,0.0001919,2]
[365046352,1749425453539,-480.0,0.0001919,2]
[365046353,1749425453549,-380.0,0.0001919,2]
[365046354,1749425453558,-380.0,0.0001919,2]
[365046355,1749425453568,-480.0,0.0001919,2]
[365046356,1749425453578,-480.0,0.0001919,2]
[365046357,1749425453587,-480.0,0.0001919,2]
[365046358,1749425453598,-671.69,0.0001919,2]
[365046359,1749425453607,-726.95,0.0001919,2]
[365046360,1749425453617,-3051.56,0.0001919,2]
[365046361,1749425453627,-524.16,0.0001919,2]
[365046362,1749425453636,-486.42,0.0001919,2]
[365046363,1749425453646,-7615.28,0.0001919,2]
[365046364,1749425453655,-701.71,0.0001919,2]
[365046365,1749425453665,-480.0,0.0001919,2]
[365046366,1749425453675,-480.0,0.0001919,2]
[365046367,1749425453685,-1766.62,0.0001919,2]
[365046368,1749425453698,-2396.23,0.0001919,2]
[365046369,1749425453707,-480.0,0.0001919,2]
[365046370,1749425453717,-2764.63,0.0001919,2]
[365046371,1749425453727,-3777.34,0.0001919,2]
[365046372,1749425453738,-380.0,0.0001919,2]
[365046373,1749425453747,-183.00868042,0.0001919,2]
[365046374,1749425453757,-480.0,0.0001919,2]
[365046375,1749425453767,-480.0,0.0001919,2]
[365046376,1749425453778,-480.0,0.0001919,2]
[365046377,1749425453788,-480.0,0.0001919,2]
[365046378,1749425453798,-480.0,0.0001919,2]
[365046379,1749425453807,-480.0,0.0001919,2]
[365046380,1749425453818,-380.0,0.0001919,2]
[365046381,1749425453827,-150.0,0.00019191,4]
[365046382,1749425453837,-886.83079157,0.00019192,2]
[365046383,1749425453847,-150.0,0.00019195,4]
[365046384,1749425453858,-150.0,0.00019195,4]
[365046385,1749425453868,-150.0,0.00019203,4]
[365046386,1749425453879,-150.0,0.00019203,4]
[365046387,1749425453888,-500.0,0.00019205,3]
[365046388,1749425453897,-150.0,0.00019209,4]
[365046389,1749425453907,-150.0,0.00019227,4]
[365046390,1749425453916,-500.0,0.00019233,3]
[365046391,1749425453926,-150.0,0.00019233,4]
[365046392,1749425453936,-150.0,0.00019233,4]
[365046393,1749425453945,-150.0,0.00019233,4]
[365046394,1749425453955,-150.0,0.00019233,4]
[365046395,1749425453965,-150.37736635,0.00019236,2]
[365046396,1749425453974,-8371.67514523,0.00019243,2]
[365046397,1749425453983,-4976.64483379,0.00019245,2]
[365046398,1749425453993,-150.0,0.00019245,4]
[365046399,1749425454002,-150.0,0.00019248,4]
[365046400,1749425454011,-500.0,0.0001926,3]
[365046401,1749425454020,-800.0,0.00019261,2]
[365046402,1749425454030,-800.0,0.00019261,2]
[365046403,1749425454040,-800.0,0.00019261,2]
[365046404,1749425454050,-800.0,0.00019261,2]
[365046405,1749425454060,-800.0,0.00019261,2]
[365046406,1749425454070,-800.0,0.00019261,2]
[365046407,1749425454079,-800.0,0.00019261,2]
[365046408,1749425454088,-800.0,0.00019261,2]
[365046409,1749425454097,-800.0,0.00019261,2]
[365046410,1749425454107,-800.0,0.00019261,2]
[365046411,1749425454116,-1078.0,0.00019261,2]
[365046412,1749425454126,-150.0,0.00019262,4]
[365046413,1749425454136,-150.0,0.00019263,4]
[365046414,1749425454145,-480.0,0.00019264,2]
[365046415,1749425454155,-480.0,0.00019264,2]
[365046416,1749425454163,-480.0,0.00019264,2]
[365046417,1749425454173,-480.0,0.00019264,2]
[365046418,1749425454183,-480.0,0.00019264,2]
[365046419,1749425454192,-231.1687784,0.00019264,2]
[365046420,1749425454201,-480.0,0.00019264,2]
[365046421,1749425454211,-150.0,0.00019271,4]
[365046422,1749425454220,-150.0,0.00019281,4]
[365046423,1749425454230,-500.0,0.00019288,3]
[365046424,1749425454239,-150.0,0.00019292,4]
[365046425,1749425454249,-150.0,0.00019292,4]
[365046426,1749425454259,-150.0,0.00019299,4]
[365046427,1749425454268,-209.4,0.000193,2]
[365046428,1749425454277,-777.35528455,0.000193,2]
[365046429,1749425454287,-150.0,0.0001931,4]
[365046430,1749425454297,-150.0,0.0001931,4]
[365046431,1749425454306,-886.83079155,0.0001931,2]
[365046432,1749425454316,-4976.64483379,0.00019314,2]
[365046433,1749425454325,-500.0,0.00019315,3]
[365046434,1749425454335,-150.0,0.00019317,4]
[365046435,1749425454345,-2824.29885017,0.0001932,2]
[365046436,1749425454355,-150.0,0.00019321,4]
[365046437,1749425454364,-8744.7940358,0.00019326,2]
[365046438,1749425454374,-150.0,0.00019329,4]
[365046439,1749425454384,-150.0,0.00019335,4]
[365046440,1749425454394,-150.0,0.00019336,4]
[365046441,1749425454403,-500.0,0.00019342,3]
[365046442,1749425454413,-480.0,0.00019343,2]
[365046443,1749425454423,-727.51,0.00019343,2]
[365046444,1749425454432,-663.6,0.00019343,2]
[365046445,1749425454442,-150.0,0.00019348,4]
[365046446,1749425454452,-150.0,0.00019351,4]
[365046447,1749425454461,-480.0,0.00019352,2]
[365046448,1749425454471,-480.0,0.00019352,2]
[365046449,1749425454480,-150.0,0.00019353,4]
[365046450,1749425454490,-480.0,0.00019353,2]
[365046451,1749425454499,-446.30736106,0.00019353,2]
[365046452,1749425454509,-480.0,0.00019353,2]
[365046453,1749425454518,-480.0,0.00019353,2]
[365046454,1749425454527,-480.0,0.00019353,2]
[365046455,1749425454537,-480.0,0.00019353,2]
[365046456,1749425454546,-480.0,0.00019353,2]
[365046457,1749425454555,-480.0,0.00019353,2]
[365046458,1749425454564,-480.0,0.00019353,2]
[365046459,1749425454574,-480.0,0.00019353,2]
[365046460,1749425454584,-480.0,0.00019353,2]
[365046461,1749425454593,-480.0,0.00019353,2]
[365046462,1749425454603,-480.0,0.00019353,2]
[365046463,1749425454613,-480.0,0.00019353,2]
[365046464,1749425454623,-480.0,0.00019353,2]
[365046465,1749425454633,-598.52,0.00019353,2]
[365046466,1749425454642,-498.52557765,0.00019353,2]
[365046467,1749425454652,-480.0,0.00019353,2]
[365046468,1749425454662,-480.0,0.00019353,2]
[365046469,1749425454671,-480.0,0.00019353,2]
[365046470,1749425454681,-480.0,0.00019353,2]
[365046471,1749425454691,-480.0,0.00019353,2]
[365046472,1749425454703,-480.0,0.00019353,2]
[365046473,1749425454712,-480.0,0.00019353,2]
[365046474,1749425454721,-480.0,0.00019353,2]
[365046475,1749425454732,-480.0,0.00019353,2]
[365046476,1749425454743,-480.0,0.00019353,2]
[365046477,1749425454753,-480.0,0.00019353,2]
[365046478,1749425454763,-480.0,0.00019353,2]
[365046479,1749425454775,-480.0,0.00019353,2]
[365046480,1749425454784,-480.0,0.00019353,2]
[365046481,1749425454794,-480.0,0.00019353,2]
[365046482,1749425454804,-480.0,0.00019353,2]
[365046483,1749425454814,-526.08016768,0.00019353,2]
[365046484,1749425454824,-480.0,0.00019353,2]
[365046485,1749425454833,-480.0,0.00019353,2]
[365046486,1749425454843,-192.84282547,0.00019353,2]
[365046487,1749425454853,-480.0,0.00019353,2]
[365046488,1749425454864,-480.0,0.00019353,2]
[365046489,1749425454874,-480.0,0.00019353,2]
[365046490,1749425454884,-480.0,0.00019353,2]
[365046491,1749425454894,-480.0,0.00019353,2]
[365046492,1749425454903,-480.0,0.00019353,2]
[365046493,1749425454912,-480.0,0.00019353,2]
[365046494,1749425454922,-480.0,0.00019353,2]
[365046495,1749425454931,-480.0,0.00019353,2]
[365046496,1749425454940,-480.0,0.00019353,2]
[365046497,1749425454950,-480.0,0.00019353,2]
[365046498,1749425454959,-480.0,0.00019353,2]
[365046499,1749425454969,-480.0,0.00019353,2]
[365046500,1749425454978,-480.0,0.00019353,2]
[365046501,1749425454988,-502.16765679,0.00019353,2]
[365046502,1749425454998,-480.0,0.00019353,2]
[365046503,1749425455009,-480.0,0.00019353,2]
[365046504,1749425455019,-592.48937099,0.00019353,2]
[365046505,1749425455028,-480.0,0.00019353,2]
[365046506,1749425455038,-480.0,0.00019353,2]
[365046507,1749425455048,-480.0,0.00019353,2]
[365046508,1749425455058,-480.0,0.00019353,2]
[365046509,1749425455067,-480.0,0.00019353,2]
[365046510,1749425455077,-480.0,0.00019353,2]
[365046511,1749425455087,-291.49466522,0.00019353,2]
[365046512,1749425455096,-480.0,0.00019353,2]
[365046513,1749425455106,-480.0,0.00019353,2]
[365046514,1749425455116,-480.0,0.00019353,2]
[365046515,1749425455125,-480.0,0.00019353,2]
[365046516,1749425455135,-480.0,0.00019353,2]
[365046517,1749425455145,-480.0,0.00019353,2]
[365046518,1749425455155,-480.0,0.00019353,2]
[365046519,1749425455165,-480.0,0.00019353,2]
[365046520,1749425455175,-480.0,0.00019353,2]
[365046521,1749425455184,-496.61,0.00019353,2]
[365046522,1749425455194,-480.0,0.00019353,2]
[365046523,1749425455204,-480.0,0.00019353,2]
[365046524,1749425455214,-480.0,0.00019353,2]
[365046525,1749425455224,-204.84066236,0.00019353,2]
[365046526,1749425455234,-480.0,0.00019353,2]
[365046527,1749425455243,-480.0,0.00019353,2]
[365046528,1749425455253,-480.0,0.00019353,2]
[365046529,1749425455263,-480.0,0.00019353,2]
[365046530,1749425455272,-480.0,0.00019353,2]
[365046531,1749425455282,-823.4,0.00019354,2]
[365046532,1749425455292,-480.0,0.00019354,2]
[365046533,1749425455303,-480.0,0.00019354,2]
[365046534,1749425455312,-480.0,0.00019354,2]
[365046535,1749425455322,-480.0,0.00019354,2]
[365046536,1749425455331,-912.18,0.00019354,2]
[365046537,1749425455341,-480.0,0.00019354,2]
[365046538,1749425455352,-480.0,0.00019354,2]
[365046539,1749425455361,-772.25,0.00019354,2]
[365046540,1749425455370,-480.0,0.00019354,2]
[365046541,1749425455380,-480.0,0.00019354,2]
[365046542,1749425455390,-549.28,0.00019354,2]
[365046543,1749425455399,-480.0,0.00019354,2]
[365046544,1749425455408,-480.0,0.00019354,2]
[365046545,1749425455418,-480.0,0.00019354,2]
[365046546,1749425455428,-480.0,0.00019354,2]
[365046547,1749425455439,-811.78,0.00019354,2]
[365046548,1749425455448,-1522.77,0.00019354,2]
[365046549,1749425455458,-500.0,0.00019354,2]
[365046550,1749425455467,-633.17,0.00019354,2]
[365046551,1749425455478,-480.0,0.00019354,2]
[365046552,1749425455488,-595.66,0.00019354,2]
[365046553,1749425455498,-496.53,0.00019354,2]
[365046554,1749425455507,-608.95919859,0.00019354,2]
[365046555,1749425455517,-480.0,0.00019354,2]
[365046556,1749425455527,-480.0,0.00019354,2]
[365046557,1749425455536,-180.0,0.00019354,2]
[365046558,1749425455545,-480.0,0.00019354,2]
[365046559,1749425455555,-606.31847221,0.00019354,2]
[365046560,1749425455565,-531.61717772,0.00019354,2]
[365046561,1749425455575,-480.0,0.00019354,2]
[365046562,1749425455585,-480.0,0.00019354,2]
[365046563,1749425455595,-185.39781263,0.00019354,2]
[365046564,1749425455606,-606.51873461,0.00019354,2]
[365046565,1749425455617,-189.0988328,0.00019354,2]
[365046566,1749425455627,-722.96,0.00019354,2]
[365046567,1749425455637,-620.63096543,0.00019354,2]
[365046568,1749425455648,-380.0,0.00019354,2]
[365046569,1749425455657,-612.41365507,0.00019354,2]
[365046570,1749425455667,-505.05,0.00019354,2]
[365046571,1749425455676,-480.0,0.00019354,2]
[365046572,1749425455685,-613.03609785,0.00019354,2]
[365046573,1749425455701,-180.0,0.00019354,2]
[365046574,1749425455712,-480.0,0.00019354,2]
[365046575,1749425455721,-480.0,0.00019354,2]
[365046576,1749425455730,-480.0,0.00019354,2]
[365046577,1749425455740,-460.0,0.00019354,2]
[365046578,1749425455751,-480.0,0.00019354,2]
[365046579,1749425455761,-205.47308473,0.00019354,2]
[365046580,1749425455772,-677.07,0.00019354,2]
[365046581,1749425455781,-671.69,0.00019354,2]
[365046582,1749425455791,-726.95,0.00019354,2]
[365046583,1749425455800,-480.0,0.00019354,2]
[365046584,1749425455811,-3051.56,0.00019354,2]
[365046585,1749425455821,-480.0,0.00019354,2]
[365046586,1749425455831,-524.16,0.00019354,2]
[365046587,1749425455840,-550.02,0.00019354,2]
[365046588,1749425455849,-480.0,0.00019354,2]
[365046589,1749425455859,-486.42,0.00019354,2]
[365046590,1749425455868,-480.0,0.00019354,2]
[365046591,1749425455877,-547.1,0.00019354,2]
[365046592,1749425455887,-480.0,0.00019354,2]
[365046593,1749425455896,-380.0,0.00019354,2]
[365046594,1749425455906,-380.0,0.00019354,2]
[365046595,1749425455915,-380.0,0.00019354,2]
[365046596,1749425455926,-7615.28,0.00019354,2]
[365046597,1749425455935,-647.27,0.00019354,2]
[365046598,1749425455945,-999.15,0.00019354,2]
[365046599,1749425455954,-701.71,0.00019354,2]
[365046600,1749425455963,-480.0,0.00019354,2]
[365046601,1749425455973,-480.0,0.00019354,2]
[365046602,1749425455983,-480.0,0.00019354,2]
[365046603,1749425455993,-480.0,0.00019354,2]
[365046604,1749425456003,-197.17455483,0.00019354,2]
[365046605,1749425456013,-480.0,0.00019354,2]
[365046606,1749425456022,-2000.0,0.00019354,2]
[365046607,1749425456032,-542.42,0.00019354,2]
[365046608,1749425456042,-180.0,0.00019354,2]
[365046609,1749425456052,-480.0,0.00019354,2]
[365046610,1749425456062,-297.43806399,0.00019354,2]
[365046611,1749425456072,-480.0,0.00019354,2]
[365046612,1749425456082,-480.0,0.00019354,2]
[365046613,1749425456091,-480.0,0.00019354,2]
[365046614,1749425456101,-480.0,0.00019354,2]
[365046615,1749425456110,-1766.62,0.00019354,2]
[365046616,1749425456120,-480.0,0.00019354,2]
[365046617,1749425456130,-480.0,0.00019354,2]
[365046618,1749425456140,-480.0,0.00019354,2]
[365046619,1749425456150,-492.06,0.00019354,2]
[365046620,1749425456160,-2396.23,0.00019354,2]
[365046621,1749425456169,-480.0,0.00019354,2]
[365046622,1749425456179,-480.0,0.00019354,2]
[365046623,1749425456188,-480.0,0.00019354,2]
[365046624,1749425456198,-480.0,0.00019354,2]
[365046625,1749425456207,-2764.63,0.00019354,2]
[365046626,1749425456217,-480.0,0.00019354,2]
[365046627,1749425456226,-3777.34,0.00019354,2]
[365046628,1749425456236,-480.0,0.00019354,2]
[365046629,1749425456246,-480.0,0.00019354,2]
[365046630,1749425456255,-480.0,0.00019354,2]
[365046631,1749425456265,-360.0,0.00019354,2]
[365046632,1749425456275,-878.95,0.00019354,2]
[365046633,1749425456285,-360.0,0.00019354,2]
[365046634,1749425456294,-360.0,0.00019354,2]
[365046635,1749425456304,-1299.39,0.00019354,2]
[365046636,1749425456314,-480.0,0.00019354,2]
[365046637,1749425456324,-480.0,0.00019354,2]
[365046638,1749425456333,-300.0,0.00019355,2]
[365046639,1749425456343,-1194.38,0.00019355,2]
[365046640,1749425456352,-604.14,0.00019355,2]
[365046641,1749425456362,-693.04,0.00019355,2]
[365046642,1749425456371,-808.23,0.00019355,2]
[365046643,1749425456381,-480.0,0.00019355,2]
[365046644,1749425456391,-480.0,0.00019355,2]
[365046645,1749425456400,-480.0,0.00019355,2]
[365046646,1749425456410,-360.0,0.00019355,2]
[365046647,1749425456420,-480.0,0.00019355,2]
[365046648,1749425456430,-476.64,0.00019355,2]
[365046649,1749425456440,-480.0,0.00019355,2]
[365046650,1749425456449,-480.0,0.00019355,2]
[365046651,1749425456459,-480.0,0.00019355,2]
[365046652,1749425456468,-500.0,0.0001937,3]
[365046653,1749425456478,-206.0,0.0001937,2]
[365046654,1749425456487,-213.0,0.0001937,2]
[365046655,1749425456496,-150.0,0.00019371,4]
[365046656,1749425456506,-181.04315934,0.00019373,2]
[365046657,1749425456515,-500.0,0.00019373,2]
[365046658,1749425456524,-500.0,0.00019373,2]
[365046659,1749425456533,-283.86362405,0.00019373,2]
[365046660,1749425456542,-500.0,0.00019373,2]
[365046661,1749425456551,-500.0,0.00019373,2]
[365046662,1749425456560,-500.0,0.00019373,2]
[365046663,1749425456570,-150.0,0.0001938,4]
[365046664,1749425456580,-150.0,0.0001938,4]
[365046665,1749425456589,-4976.64483379,0.00019383,2]
[365046666,1749425456599,-150.0,0.00019386,4]
[365046667,1749425456608,-6601.1716018,0.00019387,2]
[365046668,1749425456618,-4457.5491678,0.00019387,2]
[365046669,1749425456627,-2313.9267338,0.00019387,2]
[365046670,1749425456637,-170.3042998,0.00019387,2]
[365046671,1749425456647,-150.0,0.00019389,4]
[365046672,1749425456656,-156.587,0.00019389,2]
[365046673,1749425456665,-215.0738,0.00019389,2]
[365046674,1749425456675,-500.0,0.00019397,3]
[365046675,1749425456684,-326.22,0.00019399,2]
[365046676,1749425456696,-500.0,0.00019399,2]
[365046677,1749425456706,-260012.38949948,0.000194,2]
[365046678,1749425456715,-150675.34734354,0.000194,2]
[365046679,1749425456724,-285.19746776,0.000194,2]
[365046680,1749425456734,-2500.0,0.000194,7]
[365046681,1749425456745,-150.0,0.00019407,4]
[365046682,1749425456754,-150.0,0.0001941,4]
[365046683,1749425456765,-500.0,0.00019425,3]
[365046684,1749425456919,-150.0,0.00019425,4]
[365046685,1749425456930,-150.0,0.00019425,4]
[365046686,1749425456940,-150.0,0.00019425,4]
[365046687,1749425456950,-150.0,0.00019425,4]
[365046688,1749425456960,-150.0,0.00019425,4]
[365046689,1749425456970,-480.0,0.00019428,2]
[365046690,1749425456979,-480.0,0.00019428,2]
[365046691,1749425456988,-480.0,0.00019428,2]
[365046692,1749425456998,-480.0,0.00019428,2]
[365046693,1749425457009,-480.0,0.00019428,2]
[365046694,1749425457019,-480.0,0.00019428,2]
[365046695,1749425457030,-886.83079155,0.00019428,2]
[365046696,1749425457040,-150.0,0.00019439,4]
[365046697,1749425457051,-150.0,0.00019443,4]
[365046698,1749425457060,-777.35528453,0.0001945,2]
[365046699,1749425457070,-160.8346859,0.0001945,2]
[365046700,1749425457080,-4976.64483379,0.00019452,2]
[365046701,1749425457089,-500.0,0.00019452,3]
[365046702,1749425457099,-150.0,0.00019461,4]
[365046703,1749425457108,-8371.67514523,0.00019462,2]
[365046704,1749425457118,-150.0,0.00019463,4]
[365046705,1749425457128,-2824.29885017,0.00019465,2]
[365046706,1749425457138,-150.0,0.00019469,4]
[365046707,1749425457147,-150.0,0.00019469,4]
[365046708,1749425457157,-150.0,0.00019479,4]
[365046709,1749425457166,-500.0,0.00019479,3]
[365046710,1749425457175,-500.0,0.00019486,2]
[365046711,1749425457185,-158.139352,0.00019487,13]
[365046712,1749425457196,-158.139352,0.00019487,13]
[365046713,1749425457205,-158.139352,0.00019487,13]
[365046714,1749425457215,-158.139352,0.00019487,13]
[365046715,1749425457224,-177.906772,0.00019487,13]
[365046716,1749425457234,-168.740073,0.00019487,13]
[365046717,1749425457244,-150.0,0.00019497,4]
[365046718,1749425457254,-150.0,0.00019498,4]
[365046719,1749425457264,-900.0,0.000195,3]
[365046720,1749425457273,-157.97073,0.000195,2]
[365046721,1749425457283,-10525.12350432,0.000195,3]
[365046722,1749425457293,-209.4,0.000195,2]
[365046723,1749425457303,-3100.0,0.000195,7]
[365046724,1749425457312,-150.0,0.00019501,4]
[365046725,1749425457322,-500.0,0.00019507,3]
[365046726,1749425457331,-521.0,0.00019507,2]
[365046727,1749425457341,-480.0,0.00019507,2]
[365046728,1749425457354,-727.51,0.00019507,2]
[365046729,1749425457364,-663.6,0.00019507,2]
[365046730,1749425457373,-150.0,0.00019513,4]
[365046731,1749425457384,-150.0,0.00019515,4]
[365046732,1749425457393,-480.0,0.00019517,2]
[365046733,1749425457403,-480.0,0.00019517,2]
[365046734,1749425457412,-480.0,0.00019518,2]
[365046735,1749425457422,-394.85428001,0.00019518,2]
[365046736,1749425457431,-480.0,0.00019518,2]
[365046737,1749425457440,-480.0,0.00019518,2]
[365046738,1749425457451,-480.0,0.00019518,2]
[365046739,1749425457460,-480.0,0.00019518,2]
[365046740,1749425457470,-480.0,0.00019518,2]
[365046741,1749425457479,-480.0,0.00019518,2]
[365046742,1749425457489,-480.0,0.00019518,2]
[365046743,1749425457499,-480.0,0.00019518,2]
[365046744,1749425457508,-480.0,0.00019518,2]
[365046745,1749425457518,-175.55264665,0.00019518,2]
[365046746,1749425457528,-380.0,0.00019518,2]
[365046747,1749425457537,-480.0,0.00019518,2]
[365046748,1749425457546,-598.52,0.00019518,2]
[365046749,1749425457556,-480.0,0.00019518,2]
[365046750,1749425457565,-480.0,0.00019518,2]
[365046751,1749425457575,-291.56131123,0.00019518,2]
[365046752,1749425457585,-480.0,0.00019518,2]
[365046753,1749425457594,-480.0,0.00019518,2]
[365046754,1749425457604,-480.0,0.00019518,2]
[365046755,1749425457613,-480.0,0.00019518,2]
[365046756,1749425457623,-480.0,0.00019518,2]
[365046757,1749425457633,-480.0,0.00019518,2]
[365046758,1749425457642,-480.0,0.00019518,2]
[365046759,1749425457651,-480.0,0.00019518,2]
[365046760,1749425457661,-823.4,0.00019518,2]
[365046761,1749425457671,-480.0,0.00019518,2]
[365046762,1749425457680,-480.0,0.00019518,2]
[365046763,1749425457692,-480.0,0.00019518,2]
[365046764,1749425457703,-480.0,0.00019518,2]
[365046765,1749425457712,-912.18,0.00019518,2]
[365046766,1749425457722,-480.0,0.00019518,2]
[365046767,1749425457732,-480.0,0.00019518,2]
[365046768,1749425457741,-772.25,0.00019518,2]
[365046769,1749425457751,-480.0,0.00019518,2]
[365046770,1749425457760,-480.0,0.00019518,2]
[365046771,1749425457771,-549.28,0.00019518,2]
[365046772,1749425457782,-480.0,0.00019518,2]
[365046773,1749425457791,-480.0,0.00019518,2]
[365046774,1749425457801,-480.0,0.00019518,2]
[365046775,1749425457811,-480.0,0.00019518,2]
[365046776,1749425457821,-480.0,0.00019518,2]